bitfinex/quotes_ETHUSD_20230103
["timestamp","ask_amount","ask_price","bid_price","bid_amount"]
[1672785894246,0.00640065,1211.6,1211.5,71.74728642]
[1672785894396,1.85398939,1211.6,1211.5,71.74728642]
[1672785894866,2.53349593,1211.7,1211.5,71.74728642]
[1672785894867,4.38748532,1211.7,1211.5,71.74728642]
[1672785895026,4.32508467,1211.7,1211.6,15.94135888]
[1672785895236,4.32508467,1211.7,1211.6,45.72010888]
[1672785895589,4.32508467,1211.7,1211.6,51.91290651]
[1672785896412,2.47109528,1211.7,1211.6,51.91290651]
[1672785896939,5.56511022,1211.7,1211.6,51.91290651]
[1672785897295,5.62551087,1211.7,1211.6,51.91290651]
[1672785897862,5.62551087,1211.7,1211.6,49.87190651]
[1672785897863,2.53149593,1211.7,1211.6,49.87190651]
[1672785898231,5.56511022,1211.7,1211.6,49.87190651]
[1672785898446,5.62551087,1211.7,1211.6,49.87190651]
[1672785900404,5.62551087,1211.7,1211.6,44.1742806]
[1672785900856,2.53149593,1211.7,1211.6,44.1742806]
[1672785901070,5.56511022,1211.7,1211.6,44.1742806]
[1672785901225,5.62551087,1211.7,1211.6,44.1742806]
[1672785903365,5.62551087,1211.7,1211.6,43.67910888]
[1672785903953,5.62551087,1211.7,1211.6,44.1742806]
[1672785909041,3.15441559,1211.7,1211.6,44.1742806]
[1672785909221,3.09401494,1211.7,1211.6,44.1742806]
[1672785910951,5.56584733,1211.7,1211.6,44.1742806]
[1672785911143,3.15441559,1211.7,1211.6,44.1742806]
[1672785911332,3.09401494,1211.7,1211.6,44.1742806]
[1672785912042,3.09401494,1211.7,1211.6,44.17101434]
[1672785912206,5.5661095,1211.7,1211.6,44.17101434]
[1672785912426,5.62651015,1211.7,1211.6,44.17101434]
[1672785914514,3.15441559,1211.7,1211.6,44.17101434]
[1672785914730,3.09401494,1211.7,1211.6,44.17101434]
[1672785919550,3.09401494,1211.7,1211.6,52.02426434]
[1672785919918,12.09514574,1211.8,1211.6,52.02426434]
[1672785920131,12.09314574,1211.8,1211.7,23.95574114]
[1672785920295,3.77834574,1211.8,1211.7,24.02174114]
[1672785920508,3.77834574,1211.8,1211.7,33.92518114]
[1672785920509,3.71794509,1211.8,1211.7,33.92518114]
[1672785920719,3.71794509,1211.8,1211.7,36.92518114]
[1672785924348,8.41844283,1211.8,1211.7,36.92518114]
[1672785924566,8.47884348,1211.8,1211.7,36.92518114]
[1672785925170,8.47884348,1211.8,1211.7,17.11830114]
[1672785926736,8.47884348,1211.8,1211.7,7.21486114]
[1672785927343,8.47884348,1211.8,1211.7,17.11830114]
[1672785928342,8.47884348,1211.8,1211.7,27.02174114]
[1672785928654,8.47884348,1211.8,1211.7,36.92518114]
[1672785928867,8.47884348,1211.8,1211.7,27.02174114]
[1672785929502,8.47884348,1211.8,1211.7,41.62567888]
[1672785929709,8.47884348,1211.8,1211.7,31.72223888]
[1672785930407,8.47884348,1211.8,1211.7,41.62567888]
[1672785932436,8.47884348,1211.8,1211.7,31.72223888]
[1672785932646,8.47884348,1211.8,1211.7,21.81879888]
[1672785932864,8.47884348,1211.8,1211.7,31.72223888]
[1672785933014,8.47884348,1211.8,1211.7,41.62567888]
[1672785933688,8.47884348,1211.8,1211.7,31.72223888]
[1672785934493,8.47884348,1211.8,1211.7,31.71947751]
[1672785940217,8.47884348,1211.8,1211.7,21.81603751]
[1672785940814,8.47884348,1211.8,1211.7,31.71947751]
[1672785941700,8.47884348,1211.8,1211.7,41.62291751]
[1672785941859,8.47884348,1211.8,1211.7,42.11808923]
[1672785942719,8.47884348,1211.8,1211.7,37.41759149]
[1672785942955,8.47884348,1211.8,1211.7,12.38621313]
[1672785943991,8.47884348,1211.8,1211.7,22.28965313]
[1672785944531,8.47884348,1211.8,1211.7,12.38621313]
[1672785945744,8.47884348,1211.8,1211.7,22.28965313]
[1672785946162,8.47884348,1211.8,1211.7,42.09653313]
[1672785950310,8.47884348,1211.8,1211.7,32.19309313]
[1672785951195,8.47884348,1211.8,1211.7,22.28965313]
[1672785951660,8.47884348,1211.8,1211.7,7.70727149]
[1672785951830,8.47884348,1211.8,1211.7,12.3849722]
[1672785952186,8.47884348,1211.8,1211.7,22.2884122]
[1672785952379,8.47884348,1211.8,1211.7,12.3849722]
[1672785953461,8.47884348,1211.8,1211.7,22.2884122]
[1672785953628,8.47884348,1211.8,1211.7,12.3849722]
[1672785954282,8.47884348,1211.8,1211.7,22.2884122]
[1672785954495,8.47884348,1211.8,1211.7,12.3849722]
[1672785954661,8.47884348,1211.8,1211.7,12.38580287]
[1672785955261,8.47884348,1211.8,1211.7,22.28924287]
[1672785955407,8.47884348,1211.8,1211.7,12.3818386]
[1672785955862,8.47884348,1211.8,1211.7,22.2852786]
[1672785956076,8.47884348,1211.8,1211.7,32.1887186]
[1672785956304,8.47884348,1211.8,1211.7,22.2852786]
[1672785956619,8.47884348,1211.8,1211.7,12.3818386]
[1672785956767,8.47884348,1211.8,1211.7,7.70330722]
[1672785957463,8.47884348,1211.8,1211.7,12.38141617]
[1672785957784,8.47884348,1211.8,1211.7,7.70330722]
[1672785958471,8.47884348,1211.8,1211.7,12.38226102]
[1672785958719,8.47884348,1211.8,1211.7,22.28570102]
[1672785959128,8.47884348,1211.8,1211.7,32.18914102]
[1672785959831,8.47884348,1211.8,1211.7,42.09258102]
[1672785960938,8.47884348,1211.8,1211.7,32.18914102]
[1672785962243,8.47884348,1211.8,1211.7,12.38226102]
[1672785963345,8.47884348,1211.8,1211.7,22.28570102]
[1672785963517,8.47884348,1211.8,1211.7,32.18914102]
[1672785965337,8.47884348,1211.8,1211.7,22.28570102]
[1672785965929,8.47884348,1211.8,1211.7,12.38226102]
[1672785966489,8.47884348,1211.8,1211.7,22.28570102]
[1672785966832,8.47884348,1211.8,1211.7,7.70330722]
[1672785968125,8.47884348,1211.8,1211.7,7.2081355]
[1672785968990,8.47884348,1211.8,1211.7,27.0150155]
[1672785969179,8.47884348,1211.8,1211.7,31.69307987]
[1672785969389,3.77834574,1211.8,1211.7,31.69307987]
[1672785969653,3.77834574,1211.8,1211.7,41.59651987]
[1672785969654,3.71794509,1211.8,1211.7,41.59651987]
[1672785970022,8.41844283,1211.8,1211.7,41.59651987]
[1672785970238,8.47884348,1211.8,1211.7,41.59651987]
[1672785972802,3.77834574,1211.8,1211.7,41.59651987]
[1672785973013,8.41844283,1211.8,1211.7,41.59651987]
[1672785973327,8.47884348,1211.8,1211.7,41.59651987]
[1672785974377,3.77834574,1211.8,1211.7,41.59651987]
[1672785974700,3.71794509,1211.8,1211.7,41.59651987]
[1672785975016,0.00475438,1211.8,1211.7,41.59651987]
[1672785975378,3.09740125,1211.8,1211.7,41.59651987]
[1672785975941,3.09740125,1211.8,1211.7,41.59324717]
[1672785976336,7.79789899,1211.8,1211.7,41.59324717]
[1672785976533,7.85829964,1211.8,1211.7,41.59324717]
[1672785978695,4.39420486,1211.8,1211.7,77.81105261]
[1672785978864,1.86006145,1211.8,1211.7,80.08983497]
[1672785979064,1.86021238,1211.8,1211.7,83.16295614]
[1672785979429,1.86019654,1211.8,1211.7,83.16295614]
[1672785979635,1.8602026,1211.8,1211.7,83.16295614]
[1672785979870,0.00475438,1211.8,1211.7,83.16295614]
[1672785980160,4.33434787,1211.9,1211.8,33.32535668]
[1672785980371,4.33434787,1211.9,1211.8,47.19712357]
[1672785980584,4.33434787,1211.9,1211.8,50.69229529]
[1672785981425,4.33434787,1211.9,1211.8,52.74229529]
[1672785981747,4.33434787,1211.9,1211.8,62.64491529]
[1672785983803,1.86060511,1211.9,1211.8,62.64491529]
[1672785986865,4.33434787,1211.9,1211.8,62.64491529]
[1672785988618,1.86060511,1211.9,1211.8,62.64491529]
[1672785988895,1.86060511,1211.9,1211.8,64.91691529]
[1672785988896,0.00664663,1211.9,1211.8,64.91691529]
[1672785991476,0.00664663,1211.9,1211.8,62.86691529]
[1672786004217,0.00664663,1211.9,1211.8,64.90699899]
[1672786011934,1.86060511,1211.9,1211.8,64.90699899]
[1672786013329,0.00664663,1211.9,1211.8,64.90699899]
[1672786013539,1.86060511,1211.9,1211.8,64.90699899]
[1672786017953,4.33434787,1211.9,1211.8,64.90699899]
[1672786018587,1.86060511,1211.9,1211.8,64.90699899]
[1672786020164,4.33434787,1211.9,1211.8,64.41182727]
[1672786020522,4.33434787,1211.9,1211.8,64.90699899]
[1672786021109,4.33093368,1211.9,1211.8,64.90699899]
[1672786026285,4.33093368,1211.9,1211.8,70.02854101]
[1672786026286,1.85719092,1211.9,1211.8,70.02854101]
[1672786026499,0.00323244,1211.9,1211.8,70.02854101]
[1672786027563,0.00323244,1211.9,1211.8,72.4024785]
[1672786027781,0.00323244,1211.9,1211.8,73.0218785]
[1672786028174,0.00323244,1211.9,1211.8,72.4024785]
[1672786028393,0.00167074,1212.0,1211.8,74.25765691]
[1672786028760,0.00167074,1212.0,1211.9,66.9393009]
[1672786028969,0.00167074,1212.0,1211.9,75.42687317]
[1672786029148,0.00167074,1212.0,1211.9,75.92204489]
[1672786029349,0.00167074,1212.0,1211.9,74.68316634]
[1672786031489,0.00167074,1212.0,1211.9,82.55196634]
[1672786032945,0.00519974,1212.1,1212.0,0.00032926]
[1672786033193,1.86130419,1212.1,1212.0,50.50364814]
[1672786033400,0.00519974,1212.1,1212.0,59.25122787]
[1672786036196,0.00519974,1212.1,1212.0,58.75605615]
[1672786037115,0.00519974,1212.1,1212.0,59.25122787]
[1672786053957,0.00519974,1212.1,1212.0,61.30122787]
[1672786061028,0.00519974,1212.1,1212.0,60.80605615]
[1672786064005,0.00519974,1212.1,1212.0,62.85423217]
[1672786064637,0.00519974,1212.1,1212.0,65.92645827]
[1672786065274,0.00519974,1212.1,1212.0,62.85423217]
[1672786065528,0.00519974,1212.1,1212.0,65.92645984]
[1672786065734,0.00519974,1212.1,1212.0,67.09213866]
[1672786065953,1e-08,1212.1,1212.0,67.09213866]
[1672786067093,1e-08,1212.1,1212.0,67.0918094]
[1672786067388,1e-08,1212.1,1212.0,68.33068795]
[1672786072836,1.86130419,1212.2,1212.0,68.33068795]
[1672786072837,1.86130419,1212.2,1212.1,2.39499999]
[1672786073182,1.86130419,1212.2,1212.1,69.21286887]
[1672786073359,1.86130419,1212.2,1212.1,74.42856259]
[1672786074173,0.00519974,1212.2,1212.1,90.27445389]
[1672786074383,0.00519974,1212.2,1212.1,102.57918126]
[1672786075004,0.00519974,1212.2,1212.1,109.66514011]
[1672786075254,0.00519974,1212.2,1212.1,105.56941861]
[1672786075467,0.00519974,1212.2,1212.1,103.7142402]
[1672786076966,0.00519974,1212.2,1212.1,92.9902402]
[1672786077143,0.00519974,1212.2,1212.1,91.75136165]
[1672786077358,0.00519974,1212.2,1212.1,92.9902402]
[1672786077528,0.00519974,1212.2,1212.1,91.75136165]
[1672786089527,1e-08,1212.2,1212.1,91.75136165]
[1672786096420,1e-08,1212.2,1212.1,92.24653337]
[1672786101166,1e-08,1212.2,1212.1,93.48541192]
[1672786107987,1e-08,1212.2,1212.1,93.49341192]
[1672786122019,1e-08,1212.2,1212.1,111.30689807]
[1672786126550,1e-08,1212.2,1212.1,113.16105286]
[1672786129180,1e-08,1212.2,1212.1,111.30689807]
[1672786130238,1e-08,1212.2,1212.1,113.16105286]
[1672786130421,1e-08,1212.2,1212.1,111.30689807]
[1672786132941,1e-08,1212.2,1212.1,96.40672807]
[1672786133157,1.85711318,1212.2,1212.1,86.80059364]
[1672786133362,3.71421898,1212.2,1212.1,86.80059364]
[1672786133662,3.71421907,1212.2,1212.1,96.70076364]
[1672786133782,1.85711318,1212.2,1212.1,96.70076364]
[1672786133989,5.57138439,1212.2,1212.1,96.70076364]
[1672786134204,7.48866274,1212.2,1212.1,96.70076364]
[1672786134447,5.63178504,1212.2,1212.1,96.70076364]
[1672786134662,7.48864851,1212.2,1212.1,96.70076364]
[1672786134904,7.48864887,1212.2,1212.1,96.70076364]
[1672786135378,9.34551246,1212.2,1212.1,96.70076364]
[1672786135587,7.48864887,1212.2,1212.1,96.70076364]
[1672786135923,9.3455118,1212.2,1212.1,94.30964699]
[1672786136132,9.34551177,1212.2,1212.1,94.30964699]
[1672786136533,11.20218507,1212.2,1212.1,94.30964699]
[1672786136725,13.05885832,1212.2,1212.1,94.30964699]
[1672786136938,11.20218506,1212.2,1212.1,94.30964699]
[1672786137732,13.05885209,1212.2,1212.1,94.30964699]
[1672786138704,13.05885209,1212.2,1212.1,95.54852554]
[1672786139411,13.05885209,1212.2,1212.1,94.30964699]
[1672786139631,13.05885209,1212.2,1212.1,95.54852554]
[1672786149357,13.05885209,1212.2,1212.1,92.14789844]
[1672786149694,13.05885209,1212.2,1212.1,90.90901989]
[1672786150076,13.05885209,1212.2,1212.1,92.14789844]
[1672786152071,13.05885209,1212.2,1212.1,90.90901989]
[1672786152977,13.05885209,1212.2,1212.1,101.61750086]
[1672786153471,13.05885209,1212.2,1212.1,103.47165565]
[1672786153667,13.05885208,1212.2,1212.1,103.47165565]
[1672786153892,13.05885208,1212.2,1212.1,105.51965565]
[1672786154290,13.05885208,1212.2,1212.1,103.66550086]
[1672786156554,13.05885208,1212.2,1212.1,105.51965565]
[1672786157019,13.05885208,1212.2,1212.1,103.66550086]
[1672786157229,13.05885208,1212.2,1212.1,105.51965565]
[1672786157908,13.05885208,1212.2,1212.1,103.66550086]
[1672786158505,13.05885208,1212.2,1212.1,105.51965565]
[1672786158721,13.05885208,1212.2,1212.1,103.66550086]
[1672786159289,13.05885208,1212.2,1212.1,105.51965565]
[1672786160752,0.06040065,1212.2,1212.1,105.51965565]
[1672786160944,1.86740897,1212.3,1212.1,105.51965565]
[1672786161156,1.86740897,1212.3,1212.2,53.79665018]
[1672786161409,0.01075585,1212.3,1212.2,58.66482831]
[1672786161578,0.01075585,1212.3,1212.2,59.16000003]
[1672786166032,1.86740897,1212.3,1212.2,51.38756751]
[1672786166244,6.56790671,1212.3,1212.2,49.58538938]
[1672786166405,6.62830736,1212.3,1212.2,49.58538938]
[1672786167293,1.92780962,1212.3,1212.2,49.58538938]
[1672786167503,1.86740897,1212.3,1212.2,49.58538938]
[1672786173178,1.86740897,1212.3,1212.2,52.65726196]
[1672786173982,1.86740897,1212.3,1212.2,49.58538938]
[1672786174181,1.86740897,1212.3,1212.2,52.65725564]
[1672786178850,1.9308892,1212.4,1212.3,1.85665312]
[1672786179165,1.86848855,1212.4,1212.3,78.46252617]
[1672786179372,1.86848855,1212.4,1212.3,76.18183163]
[1672786179586,0.01183543,1212.4,1212.3,76.18183163]
[1672786179897,1.86848855,1212.4,1212.3,78.47803069]
[1672786180339,0.01183543,1212.4,1212.3,81.54961371]
[1672786181106,1.86848855,1212.4,1212.3,78.47803069]
[1672786181315,0.01183543,1212.4,1212.3,76.43503069]
[1672786181580,0.01183543,1212.4,1212.3,79.5065973]
[1672786181796,0.01183543,1212.4,1212.3,76.43503069]
[1672786182109,0.01183543,1212.4,1212.3,79.50659101]
[1672786182474,0.01183543,1212.4,1212.3,76.43503069]
[1672786182911,0.01183543,1212.4,1212.3,79.50659811]
[1672786183580,0.01183543,1212.4,1212.3,76.43503069]
[1672786187655,1.86848855,1212.4,1212.3,74.38707417]
[1672786188196,0.01183543,1212.4,1212.3,74.38707417]
[1672786189458,1.86848855,1212.4,1212.3,74.38707417]
[1672786189673,0.01183543,1212.4,1212.3,74.38707417]
[1672786190958,0.01183543,1212.4,1212.3,76.43481204]
[1672786200499,0.01183543,1212.4,1212.3,79.50634019]
[1672786200714,0.01183543,1212.4,1212.3,76.43481204]
[1672786208503,0.01183543,1212.4,1212.3,74.38707417]
[1672786209326,0.01183543,1212.4,1212.3,76.43482847]
[1672786212086,1.86686073,1212.4,1212.3,76.43482847]
[1672786212312,1.86686892,1212.4,1212.3,76.43482847]
[1672786212528,0.01183543,1212.4,1212.3,76.43482847]
[1672786212751,1.86691737,1212.4,1212.3,76.43482847]
[1672786212963,0.01183543,1212.4,1212.3,76.43482847]
[1672786213172,1.86695599,1212.4,1212.3,76.43482847]
[1672786213507,1.86694385,1212.4,1212.3,76.43482847]
[1672786213665,0.01183543,1212.4,1212.3,76.43482847]
[1672786214025,1.86715895,1212.4,1212.3,76.43482847]
[1672786214383,1.86717022,1212.4,1212.3,76.43482847]
[1672786217149,1.86717022,1212.4,1212.3,79.5064779]
[1672786217589,0.01183543,1212.4,1212.3,79.5064779]
[1672786217914,1.86820028,1212.4,1212.3,79.5064779]
[1672786218224,1.86823434,1212.4,1212.3,79.5064779]
[1672786218395,0.01183543,1212.4,1212.3,79.5064779]
[1672786218801,1.8682271,1212.4,1212.3,79.5064779]
[1672786219062,1.86820174,1212.4,1212.3,79.5064779]
[1672786219211,1.86819213,1212.4,1212.3,79.5064779]
[1672786219428,4.34193489,1212.4,1212.3,72.09087511]
[1672786219651,4.34193489,1212.4,1212.3,74.13870272]
[1672786220105,4.34193489,1212.4,1212.3,72.09087511]
[1672786224780,1.86819213,1212.4,1212.3,72.09087511]
[1672786225364,4.34193489,1212.4,1212.3,62.19234511]
[1672786228787,1.86819213,1212.4,1212.3,62.19234511]
[1672786236157,1.86819213,1212.4,1212.3,64.24013976]
[1672786237518,1.86819213,1212.4,1212.3,74.13866976]
[1672786237730,1.86819213,1212.4,1212.3,64.24013976]
[1672786242784,1.86819213,1212.4,1212.3,62.19234511]
[1672786242785,4.34193489,1212.4,1212.3,62.19234511]
[1672786247663,8.25251057,1212.4,1212.3,62.19234511]
[1672786247813,8.31291122,1212.4,1212.3,62.19234511]
[1672786248343,7.59890011,1212.4,1212.3,62.18852736]
[1672786248557,7.59890011,1212.4,1212.3,61.95852736]
[1672786250271,6.45655452,1212.4,1212.3,61.95852736]
[1672786253485,8.31228247,1212.4,1212.3,61.95852736]
[1672786255981,8.30769236,1212.4,1212.3,61.95852736]
[1672786256182,8.30769236,1212.4,1212.3,60.10569199]
[1672786258065,4.40170679,1212.4,1212.3,60.10569199]
[1672786258389,8.24729171,1212.4,1212.3,60.10569199]
[1672786258572,8.30769236,1212.4,1212.3,60.10569199]
[1672786260210,2.54597884,1212.4,1212.3,60.10569199]
[1672786260423,5.57822506,1212.4,1212.3,60.10569199]
[1672786260738,2.54597884,1212.4,1212.3,60.10569199]
[1672786261045,2.48557819,1212.4,1212.3,60.10569199]
[1672786261194,6.39156414,1212.4,1212.3,60.10569199]
[1672786261406,9.54461166,1212.4,1212.3,60.10569199]
[1672786261615,5.63862571,1212.4,1212.3,60.10569199]
[1672786262462,2.54597884,1212.4,1212.3,60.10569199]
[1672786262676,2.48557819,1212.4,1212.3,60.10569199]
[1672786262875,6.38892854,1212.4,1212.3,60.10569199]
[1672786263082,6.44932919,1212.4,1212.3,60.10569199]
[1672786264454,2.54597884,1212.4,1212.3,60.10569199]
[1672786264664,4.34129888,1212.4,1212.3,60.10569199]
[1672786264932,6.39317881,1212.4,1212.3,60.10569199]
[1672786265248,2.54597884,1212.4,1212.3,60.10569199]
[1672786265461,2.48557819,1212.4,1212.3,60.10569199]
[1672786265772,2.48557819,1212.4,1212.3,59.61052027]
[1672786266351,6.39231817,1212.4,1212.3,59.61052027]
[1672786266563,6.45271882,1212.4,1212.3,59.61052027]
[1672786267204,2.54597884,1212.4,1212.3,59.61052027]
[1672786267435,4.34124922,1212.4,1212.3,60.10569199]
[1672786267650,2.48557819,1212.4,1212.3,60.10569199]
[1672786267818,5.57822506,1212.4,1212.3,60.10569199]
[1672786268026,5.63862571,1212.4,1212.3,60.10569199]
[1672786268293,2.54361684,1212.4,1212.3,60.10569199]
[1672786268502,2.49161684,1212.4,1212.3,60.10569199]
[1672786268692,5.57586306,1212.4,1212.3,60.10569199]
[1672786268906,5.63626371,1212.4,1212.3,60.10569199]
[1672786269097,9.53968879,1212.4,1212.3,60.10569199]
[1672786269516,5.63626371,1212.4,1212.3,60.10569199]
[1672786271286,4.39906048,1212.4,1212.3,60.10569199]
[1672786271621,4.33865983,1212.4,1212.3,60.10569199]
[1672786271848,2.48321619,1212.4,1212.3,60.10569199]
[1672786272183,4.3386778,1212.4,1212.3,60.10569199]
[1672786272757,2.48321619,1212.4,1212.3,60.10569199]
[1672786272968,2.48321619,1212.4,1212.3,67.10614819]
[1672786279226,5.57586306,1212.4,1212.3,67.10614819]
[1672786279440,5.63626371,1212.4,1212.3,67.10614819]
[1672786279586,5.63626371,1212.4,1212.3,60.10569199]
[1672786280544,4.39945596,1212.4,1212.3,60.10569199]
[1672786280748,4.33905531,1212.4,1212.3,60.10569199]
[1672786282683,4.33905531,1212.4,1212.3,60.33569199]
[1672786283123,2.48321619,1212.4,1212.3,60.33569199]
[1672786283342,2.48321619,1212.4,1212.3,66.43118119]
[1672786283719,5.57586306,1212.4,1212.3,66.43118119]
[1672786283947,5.63626371,1212.4,1212.3,66.43118119]
[1672786284865,2.54361684,1212.4,1212.3,66.43118119]
[1672786285079,2.48321619,1212.4,1212.3,66.43118119]
[1672786285292,5.57586306,1212.4,1212.3,66.43118119]
[1672786285496,2.54361684,1212.4,1212.3,66.43118119]
[1672786285743,2.48321619,1212.4,1212.3,66.43118119]
[1672786288149,4.33942651,1212.4,1212.3,66.43118119]
[1672786288368,2.48321619,1212.4,1212.3,66.43118119]
[1672786289529,5.57586306,1212.4,1212.3,66.43118119]
[1672786289757,5.57586306,1212.4,1212.3,60.33250284]
[1672786289758,5.63626371,1212.4,1212.3,60.33250284]
[1672786290764,2.54361684,1212.4,1212.3,60.33250284]
[1672786291010,5.57586306,1212.4,1212.3,60.33250284]
[1672786291252,5.63626371,1212.4,1212.3,60.33250284]
[1672786291437,2.54361684,1212.4,1212.3,55.63243371]
[1672786291647,2.53961684,1212.4,1212.3,55.63243371]
[1672786291867,2.48321619,1212.4,1212.3,55.63243371]
[1672786292072,2.48321619,1212.4,1212.3,60.33293145]
[1672786292766,4.3394671,1212.4,1212.3,60.33293145]
[1672786292984,9.48768656,1212.4,1212.3,60.33293145]
[1672786293199,9.54808721,1212.4,1212.3,60.33293145]
[1672786296952,5.63626371,1212.4,1212.3,60.33293145]
[1672786297161,9.54373337,1212.4,1212.3,60.33293145]
[1672786298463,9.54373337,1212.4,1212.3,60.10293145]
[1672786298653,5.63626371,1212.4,1212.3,60.10293145]
[1672786298910,7.06539781,1212.4,1212.3,60.10293145]
[1672786301008,8.14504644,1212.4,1212.3,35.60537371]
[1672786301160,8.14504644,1212.4,1212.3,50.20440145]
[1672786301624,8.14504644,1212.4,1212.3,60.10293145]
[1672786305523,8.14504644,1212.4,1212.3,59.60775973]
[1672786305946,8.14504644,1212.4,1212.3,54.90726199]
[1672786306470,8.144485,1212.4,1212.3,54.90726199]
[1672786308097,8.94210588,1212.4,1212.3,54.90726199]
[1672786308307,11.41537519,1212.4,1212.3,54.90726199]
[1672786308518,7.86245725,1212.4,1212.3,54.90726199]
[1672786308772,10.33573339,1212.4,1212.3,54.90726199]
[1672786311353,5.63523565,1212.4,1212.3,54.90726199]
[1672786311829,10.33573339,1212.4,1212.3,54.90726199]
[1672786312264,7.86245725,1212.4,1212.3,54.904124]
[1672786315702,10.33537092,1212.4,1212.3,54.904124]
[1672786317673,10.33537092,1212.4,1212.3,55.39929572]
[1672786319170,9.76910319,1212.4,1212.3,14.208534]
[1672786319360,6.67701776,1212.4,1212.3,14.208534]
[1672786320309,10.39020847,1212.4,1212.3,14.208534]
[1672786321791,10.39020847,1212.4,1212.3,34.005594]
[1672786322020,6.67701776,1212.4,1212.3,34.005594]
[1672786322436,6.67701776,1212.4,1212.3,45.005594]
[1672786323045,9.76844367,1212.4,1212.3,45.005594]
[1672786323255,12.24167785,1212.4,1212.3,45.005594]
[1672786323993,9.76844367,1212.4,1212.3,45.005594]
[1672786329898,6.67701776,1212.4,1212.3,45.005594]
[1672786330568,9.76839611,1212.4,1212.3,45.005594]
[1672786332225,9.76475013,1212.4,1212.3,25.208534]
[1672786332434,7.85810419,1212.4,1212.3,59.44836713]
[1672786333071,7.85810419,1212.4,1212.3,59.94353885]
[1672786333319,10.33189818,1212.4,1212.3,59.94353885]
[1672786334057,5.63140044,1212.4,1212.3,69.84206885]
[1672786334377,4.39539497,1212.4,1212.3,67.13134574]
[1672786334685,5.57099979,1212.4,1212.3,67.13134574]
[1672786334838,10.33189818,1212.4,1212.3,59.94353885]
[1672786336251,7.85810419,1212.4,1212.3,55.39929572]
[1672786340401,3.15760645,1212.4,1212.3,60.09979346]
[1672786340600,4.3362119,1212.4,1212.3,79.47083681]
[1672786341167,1.86173161,1212.4,1212.3,79.47083681]
[1672786341946,1.86130078,1212.4,1212.3,81.518592]
[1672786342985,1.86130078,1212.4,1212.3,79.47083681]
[1672786343587,0.00582745,1212.4,1212.3,87.98054341]
[1672786344056,0.01007037,1212.5,1212.3,87.98054341]
[1672786344212,1.86511781,1212.5,1212.4,40.81794727]
[1672786344431,1.86511781,1212.5,1212.4,43.78653565]
[1672786344646,1.86511781,1212.5,1212.4,46.78653565]
[1672786345187,0.01007037,1212.5,1212.4,46.78653565]
[1672786347100,0.01007037,1212.5,1212.4,56.68425565]
[1672786354036,0.01007037,1212.5,1212.4,54.63625565]
[1672786362582,0.01007037,1212.5,1212.4,54.8030436]
[1672786366476,0.01007037,1212.5,1212.4,54.79926575]
[1672786368072,0.01007037,1212.5,1212.4,41.99895737]
[1672786371069,6.56561555,1212.5,1212.4,39.41649377]
[1672786371290,6.6260162,1212.5,1212.4,39.41649377]
[1672786371662,0.07047102,1212.5,1212.4,39.41649377]
[1672786371914,1.86511781,1212.5,1212.4,39.41649377]
[1672786372743,0.01007037,1212.5,1212.4,39.41649377]
[1672786373151,1.86511781,1212.5,1212.4,39.41649377]
[1672786375148,1.86511781,1212.5,1212.4,49.31421377]
[1672786375756,1.86511781,1212.5,1212.4,39.41649377]
[1672786376169,6.56561555,1212.5,1212.4,39.41649377]
[1672786376382,6.6260162,1212.5,1212.4,39.41649377]
[1672786378419,6.6260162,1212.5,1212.4,49.31421377]
[1672786378796,6.6260162,1212.5,1212.4,39.41649377]
[1672786379010,9.10049649,1212.5,1212.4,39.41649377]
[1672786379694,4.39999875,1212.5,1212.4,49.31421377]
[1672786379853,4.3395981,1212.5,1212.4,39.41649377]
[1672786380743,9.04009584,1212.5,1212.4,39.41649377]
[1672786381066,4.39999875,1212.5,1212.4,39.41649377]
[1672786381216,4.3395981,1212.5,1212.4,49.31421377]
[1672786381544,4.3395981,1212.5,1212.4,57.05641181]
[1672786382577,1.86511781,1212.5,1212.4,57.05641181]
[1672786382787,4.3395981,1212.5,1212.4,64.88984085]
[1672786385738,1.86511781,1212.5,1212.4,64.88984085]
[1672786385953,4.3395981,1212.5,1212.4,64.88984085]
[1672786387455,4.3395981,1212.5,1212.4,64.87449298]
[1672786392468,0.01007037,1212.5,1212.4,70.48856548]
[1672786393093,1.86605934,1212.5,1212.4,70.48856548]
[1672786393323,0.01007037,1212.5,1212.4,70.48856548]
[1672786393533,1.86607412,1212.5,1212.4,70.48856548]
[1672786393750,0.01007037,1212.5,1212.4,73.66458235]
[1672786394265,0.01007037,1212.5,1212.4,74.9034609]
[1672786395012,0.01007037,1212.5,1212.4,73.66458235]
[1672786399065,0.01007037,1212.5,1212.4,66.15238431]
[1672786403182,0.01007037,1212.5,1212.4,65.01736744]
[1672786403396,0.01007037,1212.5,1212.4,61.94605904]
[1672786403707,1.86535588,1212.5,1212.4,61.94605904]
[1672786403975,1.86535583,1212.5,1212.4,61.94605904]
[1672786404145,0.01007037,1212.5,1212.4,61.94605904]
[1672786404356,1.86535869,1212.5,1212.4,61.94604967]
[1672786404566,1.86543252,1212.5,1212.4,59.89846666]
[1672786412385,1.86543252,1212.5,1212.4,61.94605255]
[1672786413396,1.86543896,1212.5,1212.4,61.94605255]
[1672786413624,0.01007037,1212.5,1212.4,61.94605255]
[1672786414543,1.86547122,1212.5,1212.4,61.94605255]
[1672786414761,5.57626793,1212.5,1212.4,61.94605255]
[1672786415103,5.63667464,1212.5,1212.4,61.94605255]
[1672786415702,11.20288434,1212.5,1212.4,61.94605255]
[1672786415896,11.20287964,1212.5,1212.4,54.11262351]
[1672786416276,11.20288404,1212.5,1212.4,54.11262351]
[1672786416586,9.34748272,1212.5,1212.4,54.11262351]
[1672786416797,11.20292381,1212.5,1212.4,54.11262351]
[1672786417019,13.05836488,1212.5,1212.4,54.11262351]
[1672786417237,13.05841435,1212.5,1212.4,54.11262351]
[1672786417534,13.05842359,1212.5,1212.4,54.11262351]
[1672786417738,13.05842357,1212.5,1212.4,54.11262351]
[1672786417949,13.05842353,1212.5,1212.4,54.11262351]
[1672786418106,11.20292381,1212.5,1212.4,54.11262351]
[1672786418795,13.05846386,1212.5,1212.4,54.11262351]
[1672786418984,11.20292381,1212.5,1212.4,57.18391338]
[1672786426585,11.20292381,1212.5,1212.4,65.48783698]
[1672786429729,11.20292381,1212.5,1212.4,57.18391338]
[1672786437128,13.05898736,1212.5,1212.4,54.11262351]
[1672786442959,17.7594851,1212.5,1212.4,42.16731762]
[1672786443223,13.05898736,1212.5,1212.4,42.16731762]
[1672786444172,18.37790184,1212.5,1212.4,42.16380462]
[1672786444744,18.37790184,1212.5,1212.4,40.12280462]
[1672786446735,18.37790184,1212.5,1212.4,50.02052462]
[1672786446973,20.23338068,1212.5,1212.4,40.12280462]
[1672786447200,9.10092789,1212.5,1212.4,40.12280462]
[1672786447743,7.24544905,1212.5,1212.4,40.12280462]
[1672786448268,9.10092663,1212.5,1212.4,40.12280462]
[1672786449623,9.10092663,1212.5,1212.4,50.02052462]
[1672786450052,4.40042889,1212.5,1212.4,50.02052462]
[1672786450205,4.34002824,1212.5,1212.4,40.12280462]
[1672786450411,9.04052598,1212.5,1212.4,40.12280462]
[1672786450690,9.10092663,1212.5,1212.4,40.12280462]
[1672786450835,4.40042889,1212.5,1212.4,50.02052462]